[Event "47th GRE-chT 2019"]
[Site "Patra"]
[Date "2019.07.05"]
[Round "5.4"]
[White "Korlotsidis, Spiridon"]
[Black "Mavrikakis, Georgios"]
[Result "0-1"]
[ECO "A04"]
[WhiteElo "2055"]
[BlackElo "2022"]
[Annotator "NA RC"]
[PlyCount "86"]
[EventDate "2019.07.02"]
[EventCountry "GRE"]
[SourceTitle "playchess.com"]
[Source "ChessBase"]
[SourceQuality "1"]
[TimeControl "5400+30"]

1. Nf3 {[%emt 0:00:25]} f5 {[%emt 0:00:00]} 2. g3 {[%emt 0:00:03]} Nf6 {[%emt 0:00:00]} 3. Bg2 {[%emt 0:00:03]} g6 {[%emt 0:00:00]} 4. b3 {[%emt 0:00:28]} Bg7 {[%emt 0:00:40]} 5. Bb2 {[%emt 0:00:11]} d6 {[%emt 0:00:16]} 6. d4 {[%emt 0:00:34]} O-O {[%emt 0:00:24]} 7. O-O {[%emt 0:00:10]} a5 {[%emt 0:08:25]} 8. c4 {[%emt 0:05:27]} e6 {[%emt 0:02:22]} 9. Nc3 {[%emt 0:07:49]} Na6 {[%emt 0:02:16]} 10. a3 {[%emt 0:08:28]} Rb8 {[%emt 0:02:13]} 11. Rc1 {[%emt 0:16:57]} b6 {[%emt 0:05:27]} 12. e3 {[%emt 0:02:41]} Qe7 {[%emt 0:04:29]} 13. Qe2 {[%emt 0:14:15]} Bb7 {[%emt 0:10:55]} 14. Nd2 {[%emt 0:02:55]} Bxg2 {[%emt 0:02:43]} 15. Kxg2 {[%emt 0:00:04]} c5 {[%emt 0:00:39]} 16. Nb5 {[%emt 0:12:33]} e5 {[%emt 0:05:37]} 17. dxe5 {[%emt 0:05:14]} dxe5 {[%emt 0:00:16]} 18. f3 {[%emt 0:00:09]} Nc7 {[%emt 0:02:29]} 19. Nxc7 {[%emt 0:02:00]} Qxc7 {[%emt 0:00:05]} 20. Rfd1 {[%emt 0:00:38]} Bh6 {[%emt 0:27:49]} 21. Nb1 {[%emt 0:03:23]} Rbe8 {[%emt 0:01:31]} 22. Rc2 {[%emt 0:06:42]} f4 {[%emt 0:13:19]} 23. e4 {[%emt 0:00:47]} Rd8 {[%emt 0:00:44]} 24. Nc3 {[%emt 0:03:43]} Ng4 {[%emt 0:03:32]} 25. Bc1 {[%emt 0:03:45]} Qf7 {[%emt 0:02:32]} 26. Rxd8 {[%emt 0:00:30]} Rxd8 {[%emt 0:00:05]} 27. fxg4 {[%emt 0:01:28]} Rf8 {[%emt 0:01:00]} 28. Qf3 {[%emt 0:00:35]} a4 {[%emt 0:00:23]} 29. Nd5 {[%emt 0:01:01]} axb3 {[%emt 0:00:17]} 30. Rb2 {[%emt 0:00:24]} b5 {[%emt 0:01:16]} 31. Rxb3 {[%emt 0:00:46]} bxc4 {[%emt 0:00:23]} 32. Rc3 {[%emt 0:00:25]} Qb7 {[%emt 0:00:07]} 33. Rxc4 {[%emt 0:00:49]} Qa6 {[%emt 0:01:12]} 34. Rc2 {[%emt 0:01:02]} fxg3 {[%emt 0:00:29]} 35. Ne7+ {[%emt 0:00:31]} Kh8 {[%emt 0:00:06]} 36. Bxh6 {[%emt 0:00:30]} Rxf3 {[%emt 0:00:17]} 37. Kxf3 {[%emt 0:00:20]} Qd3+ {[%emt 0:00:24]} 38. Be3 {[%emt 0:00:38]} Qxc2 {[%emt 0:00:13]} 39. hxg3 {[%emt 0:00:13]} Qd1+ {[%emt 0:02:24]} 40. Kf2 {[%emt 0:00:00]} Qxg4 {[%emt 0:00:00]} 41. Bxc5 {[%emt 0:00:00]} Qxe4 {[%emt 0:00:00]} 42. Bb4 {[%emt 0:00:00]} h5 {[%emt 0:00:00]} 43. Bd6 {[%emt 0:00:00]} Qd4+ {[%emt 0:00:00]} 0-1

[Event "47th GRE-chT 2019"]
[Site "Patra"]
[Date "2019.07.05"]
[Round "5.5"]
[White "Szczepkowska, Karina"]
[Black "Michna, Marta"]
[Result "1/2-1/2"]
[ECO "E94"]
[WhiteElo "2425"]
[BlackElo "2358"]
[Annotator "RC"]
[PlyCount "56"]
[EventDate "2019.07.02"]
[EventCountry "GRE"]
[SourceTitle "playchess.com"]
[Source "ChessBase"]
[SourceQuality "1"]
[TimeControl "5400+30"]

1. d4 {[%emt 0:00:00]} Nf6 {[%emt 0:00:00]} 2. c4 {[%emt 0:00:04]} d6 {[%emt 0:00:07]} 3. Nf3 {[%emt 0:03:05]} Nbd7 {[%emt 0:00:06]} 4. Nc3 {[%emt 0:01:03]} e5 {[%emt 0:00:03]} 5. e4 {[%emt 0:00:23]} g6 {[%emt 0:00:04]} 6. Be2 {[%emt 0:01:04]} Bg7 {[%emt 0:00:04]} 7. O-O {[%emt 0:00:04]} O-O {[%emt 0:00:03]} 8. Qc2 {[%emt 0:03:29]} c6 {[%emt 0:02:41]} 9. d5 {[%emt 0:03:50]} c5 {[%emt 0:01:10]} 10. a3 {[%emt 0:00:14]} Nh5 {[%emt 0:12:37]} 11. Re1 {[%emt 0:00:11]} h6 {[%emt 0:01:44]} 12. g3 {[%emt 0:15:02]} b6 {[%emt 0:02:45]} 13. Rb1 {[%emt 0:03:12]} Ndf6 {[%emt 0:02:00]} 14. b4 {[%emt 0:04:10]} Nh7 {[%emt 0:21:59]} 15. Bd2 {[%emt 0:04:43]} Qe8 {[%emt 0:17:31]} 16. bxc5 {[%emt 0:05:11]} bxc5 {[%emt 0:00:11]} 17. Nb5 {[%emt 0:04:08]} Qe7 {[%emt 0:00:29]} 18. Ba5 {[%emt 0:04:00]} a6 {[%emt 0:00:25]} 19. Nc3 {[%emt 0:00:51]} f5 {[%emt 0:00:42]} 20. Rb6 {[%emt 0:04:40]} f4 {[%emt 0:05:57]} 21. Reb1 {[%emt 0:07:11]} g5 {[%emt 0:17:54]} 22. Nd1 {[%emt 0:02:51]} N5f6 {[%emt 0:05:50]} 23. Rc6 {[%emt 0:02:23]} Ne8 {[%emt 0:01:23]} 24. Rcb6 {[%emt 0:01:23]} Nef6 {[%emt 0:01:07]} 25. Rc6 {[%emt 0:00:06]} Ne8 {[%emt 0:00:03]} 26. Rcb6 {[%emt 0:00:04]} Nef6 {[%emt 0:00:03]} 27. Rc6 Ne8 28. Rcb6 Nef6 1/2-1/2

[Event "47th GRE-chT 2019"]
[Site "Patra"]
[Date "2019.07.05"]
[Round "5.5"]
[White "Botsari, Anna-Maria"]
[Black "Paehtz, Elisabeth"]
[Result "0-1"]
[ECO "A30"]
[WhiteElo "2233"]
[BlackElo "2473"]
[Annotator "RC"]
[PlyCount "69"]
[EventDate "2019.07.02"]
[EventCountry "GRE"]
[SourceTitle "playchess.com"]
[Source "ChessBase"]
[SourceQuality "1"]
[TimeControl "5400+30"]

1. d4 {[%emt 0:00:01]} Nf6 {[%emt 0:00:00]} 2. c4 {[%emt 0:00:06]} e6 {[%emt 0:00:00]} 3. g3 {[%emt 0:00:03]} c5 {[%emt 0:00:00]} 4. Nf3 {[%emt 0:02:18]} cxd4 {[%emt 0:00:00]} 5. Nxd4 {[%emt 0:00:04]} Qc7 {[%emt 0:02:38]} 6. Nc3 {[%emt 0:01:52]} a6 {[%emt 0:00:18]} 7. Bg2 {[%emt 0:00:03]} Qxc4 {[%emt 0:02:21]} 8. O-O {[%emt 0:00:08]} Qc7 {[%emt 0:04:26]} 9. e4 {[%emt 0:01:16]} Nc6 {[%emt 0:03:19]} 10. Be3 {[%emt 0:00:52]} Be7 {[%emt 0:18:40]} 11. Rc1 {[%emt 0:03:14]} O-O {[%emt 0:02:00]} 12. Na4 {[%emt 0:13:33]} Re8 {[%emt 0:27:33]} 13. Nb6 {[%emt 0:05:05]} Rb8 {[%emt 0:18:10]} 14. a3 {[%emt 0:20:38]} Bf8 {[%emt 0:03:40]} 15. Re1 {[%emt 0:03:06]} e5 {[%emt 0:01:53]} 16. Nf5 {[%emt 0:03:56]} g6 {[%emt 0:03:03]} 17. Nh4 {[%emt 0:01:53]} Qd8 {[%emt 0:02:57]} 18. Nd5 {[%emt 0:05:22]} Nxd5 {[%emt 0:00:04]} 19. exd5 {[%emt 0:00:06]} Ne7 {[%emt 0:04:40]} 20. d6 {[%emt 0:06:00]} Nc6 {[%emt 0:00:04]} 21. Nf3 {[%emt 0:15:29]} Qf6 {[%emt 0:01:30]} 22. Ng5 {[%emt 0:00:37]} h6 {[%emt 0:01:44]} 23. Ne4 {[%emt 0:00:46]} Qe6 {[%emt 0:00:22]} 24. Rc2 {[%emt 0:06:07]} f5 {[%emt 0:01:25]} 25. Ng5 {[%emt 0:04:59]} Qf6 {[%emt 0:00:04]} 26. Bd5+ {[%emt 0:00:43]} Kg7 {[%emt 0:00:05]} 27. Nf7 {[%emt 0:00:23]} Kh7 {[%emt 0:00:51]} 28. h4 {[%emt 0:01:14]} Bg7 {[%emt 0:01:30]} 29. Qd2 {[%emt 0:00:22]} Re6 {[%emt 0:00:11]} 30. Bxe6 {[%emt 0:01:08]} Qxe6 {[%emt 0:00:05]} 31. Nxh6 {[%emt 0:00:12]} b5 {[%emt 0:00:47]} 32. g4 {[%emt 0:01:57]} fxg4 {[%emt 0:00:07]} 33. Bg5 {[%emt 0:02:23]} Bb7 {[%emt 0:00:27]} 34. Rc3 {[%emt 0:00:25]} Nd4 {[%emt 0:00:21]} 35. h5 {[%emt 0:01:09]} 0-1

[Event "47th GRE-chT 2019"]
[Site "Patra"]
[Date "2019.07.05"]
[Round "5.6"]
[White "Tsolakidou, Stavroula"]
[Black "Avramidou, Anastasia"]
[Result "1/2-1/2"]
[ECO "B52"]
[WhiteElo "2423"]
[BlackElo "2260"]
[Annotator "NA RC"]
[PlyCount "96"]
[EventDate "2019.07.02"]
[EventCountry "GRE"]
[SourceTitle "playchess.com"]
[Source "ChessBase"]
[SourceQuality "1"]
[TimeControl "5400+30"]

1. e4 {[%emt 0:00:00]} c5 {[%emt 0:00:00]} 2. Nf3 {[%emt 0:00:00]} d6 {[%emt 0:00:00]} 3. Bb5+ {[%emt 0:00:00]} Bd7 {[%emt 0:00:14]} 4. Bxd7+ {[%emt 0:00:00]} Qxd7 {[%emt 0:00:23]} 5. O-O {[%emt 0:00:04]} Nf6 {[%emt 0:01:45]} 6. Re1 {[%emt 0:03:18]} Nc6 {[%emt 0:00:52]} 7. c3 {[%emt 0:00:30]} e6 {[%emt 0:06:10]} 8. d3 {[%emt 0:04:50]} Be7 {[%emt 0:00:59]} 9. Nbd2 {[%emt 0:04:42]} O-O {[%emt 0:04:38]} 10. Nf1 {[%emt 0:26:18]} d5 {[%emt 0:14:22]} 11. Qe2 {[%emt 0:16:11]} d4 {[%emt 0:10:16]} 12. e5 {[%emt 0:00:30]} Nd5 {[%emt 0:10:38]} 13. c4 {[%emt 0:00:08]} Nc7 {[%emt 0:00:43]} 14. Ng3 {[%emt 0:05:58]} f5 {[%emt 0:02:13]} 15. exf6 {[%emt 0:00:10]} Bxf6 {[%emt 0:12:33]} 16. Bd2 {[%emt 0:08:17]} Rae8 {[%emt 0:01:54]} 17. Qe4 {[%emt 0:14:31]} e5 {[%emt 0:03:38]} 18. a3 {[%emt 0:05:07]} a5 {[%emt 0:00:45]} 19. Rab1 {[%emt 0:02:08]} Kh8 {[%emt 0:07:17]} 20. Nh5 {[%emt 0:02:29]} Qf7 {[%emt 0:01:05]} 21. Qg4 {[%emt 0:04:04]} b5 {[%emt 0:01:12]} 22. cxb5 {[%emt 0:00:04]} Nxb5 {[%emt 0:03:19]} 23. Rbc1 {[%emt 0:01:38]} Qd5 {[%emt 0:08:28]} 24. Ng5 {[%emt 0:00:28]} Nd6 {[%emt 0:05:00]} 25. Nxf6 {[%emt 0:00:18]} gxf6 {[%emt 0:02:53]} 26. Qf3 {[%emt 0:00:28]} Qxf3 {[%emt 0:00:04]} 27. Nxf3 {[%emt 0:00:40]} c4 {[%emt 0:00:20]} 28. dxc4 {[%emt 0:00:12]} e4 {[%emt 0:01:27]} 29. Nh4 {[%emt 0:00:34]} Ne5 {[%emt 0:00:31]} 30. c5 {[%emt 0:00:43]} Ndc4 {[%emt 0:00:26]} 31. Bh6 {[%emt 0:00:33]} Rg8 {[%emt 0:00:34]} 32. Rxe4 {[%emt 0:00:26]} d3 {[%emt 0:00:44]} 33. Kf1 {[%emt 0:00:21]} d2 {[%emt 0:00:34]} 34. Rd1 {[%emt 0:00:24]} Nd3 {[%emt 0:00:29]} 35. Rxe8 {[%emt 0:00:05]} Rxe8 {[%emt 0:00:29]} 36. Nf3 {[%emt 0:00:10]} Ndxb2 {[%emt 0:00:30]} 37. Nxd2 {[%emt 0:00:07]} Nxd1 {[%emt 0:00:06]} 38. Nxc4 {[%emt 0:00:53]} Rc8 {[%emt 0:00:31]} 39. Nxa5 {[%emt 0:00:05]} Rxc5 {[%emt 0:00:00]} 40. Bd2 {[%emt 0:00:00]} Nc3 {[%emt 0:00:00]} 41. Nb7 {[%emt 0:00:00]} Rc7 {[%emt 0:00:00]} 42. Nd6 {[%emt 0:00:00]} Nb1 {[%emt 0:00:00]} 43. Bb4 {[%emt 0:00:00]} Rc2 {[%emt 0:00:00]} 44. g3 {[%emt 0:00:00]} Nc3 {[%emt 0:00:00]} 45. Ke1 {[%emt 0:00:00]} Re2+ {[%emt 0:00:00]} 46. Kf1 {[%emt 0:00:00]} Rc2 {[%emt 0:00:00]} 47. Ke1 {[%emt 0:00:00]} Re2+ {[%emt 0:00:00]} 48. Kf1 {[%emt 0:00:00]} Rc2 {[%emt 0:00:00]} 1/2-1/2

[Event "47th GRE-chT 2019"]
[Site "Patra"]
[Date "2019.07.05"]
[Round "5.6"]
[White "Kokkota, Fotini"]
[Black "Louka, Magdalini"]
[Result "1/2-1/2"]
[ECO "B38"]
[WhiteElo "1664"]
[BlackElo "1766"]
[Annotator "NA RC"]
[PlyCount "99"]
[EventDate "2019.07.02"]
[EventCountry "GRE"]
[SourceTitle "playchess.com"]
[Source "ChessBase"]
[SourceQuality "1"]
[TimeControl "5400+30"]

1. e4 {[%emt 0:00:00]} c5 {[%emt 0:00:00]} 2. Nf3 {[%emt 0:00:00]} g6 {[%emt 0:00:00]} 3. d4 {[%emt 0:00:00]} cxd4 {[%emt 0:00:00]} 4. Nxd4 {[%emt 0:00:00]} Nc6 {[%emt 0:00:00]} 5. c4 {[%emt 0:00:00]} Bg7 {[%emt 0:00:00]} 6. Be3 {[%emt 0:00:05]} Nf6 {[%emt 0:00:12]} 7. Nc3 {[%emt 0:00:07]} O-O {[%emt 0:00:15]} 8. Be2 {[%emt 0:00:47]} d6 {[%emt 0:00:22]} 9. O-O {[%emt 0:01:07]} Bd7 {[%emt 0:00:20]} 10. Qd2 {[%emt 0:04:20]} Nxd4 {[%emt 0:01:11]} 11. Bxd4 {[%emt 0:00:07]} Bc6 {[%emt 0:00:14]} 12. f3 {[%emt 0:00:10]} a5 {[%emt 0:01:46]} 13. b3 {[%emt 0:02:29]} Nd7 {[%emt 0:01:08]} 14. Be3 {[%emt 0:03:50]} Nc5 {[%emt 0:00:32]} 15. Rab1 {[%emt 0:01:20]} e6 {[%emt 0:02:59]} 16. Rfd1 {[%emt 0:13:02]} Be5 {[%emt 0:01:10]} 17. Bf4 {[%emt 0:04:26]} Qe7 {[%emt 0:09:03]} 18. Qe3 {[%emt 0:20:22]} Rad8 {[%emt 0:13:54]} 19. Bh6 {[%emt 0:07:30]} Bg7 {[%emt 0:05:36]} 20. Bxg7 {[%emt 0:03:23]} Kxg7 {[%emt 0:00:06]} 21. Nb5 {[%emt 0:00:50]} e5 {[%emt 0:06:51]} 22. Nc3 {[%emt 0:07:51]} Ne6 {[%emt 0:02:23]} 23. Bf1 {[%emt 0:11:48]} f5 {[%emt 0:04:44]} 24. Nd5 {[%emt 0:05:31]} Qf7 {[%emt 0:07:42]} 25. exf5 {[%emt 0:04:27]} gxf5 {[%emt 0:02:40]} 26. Qc3 {[%emt 0:01:08]} Nd4 {[%emt 0:06:43]} 27. Qxa5 {[%emt 0:03:51]} Ra8 {[%emt 0:02:48]} 28. Qc3 {[%emt 0:03:18]} Rxa2 {[%emt 0:05:42]} 29. Rxd4 {[%emt 0:01:02]} exd4 {[%emt 0:00:29]} 30. Qxd4+ {[%emt 0:00:04]} Kg8 {[%emt 0:05:05]} 31. Nb4 {[%emt 0:00:11]} Raa8 {[%emt 0:02:46]} 32. Qxd6 {[%emt 0:00:06]} Qg6 {[%emt 0:01:42]} 33. Qf4 {[%emt 0:01:13]} Rad8 {[%emt 0:04:05]} 34. c5 {[%emt 0:01:48]} Qf6 {[%emt 0:01:00]} 35. Bc4+ {[%emt 0:00:40]} Kh8 {[%emt 0:00:13]} 36. Re1 {[%emt 0:00:20]} Qd4+ {[%emt 0:01:22]} 37. Qxd4+ {[%emt 0:00:21]} Rxd4 {[%emt 0:00:07]} 38. Nxc6 {[%emt 0:00:41]} bxc6 {[%emt 0:00:06]} 39. Re6 {[%emt 0:00:15]} Rc8 {[%emt 0:02:54]} 40. Kf2 {[%emt 0:00:00]} f4 {[%emt 0:00:00]} 41. Ke2 {[%emt 0:00:00]} Ra8 {[%emt 0:00:00]} 42. g3 {[%emt 0:00:00]} Ra2+ {[%emt 0:00:00]} 43. Ke1 {[%emt 0:00:00]} Ra1+ {[%emt 0:00:00]} 44. Kf2 {[%emt 0:00:00]} Rd2+ {[%emt 0:00:00]} 45. Be2 {[%emt 0:00:00]} Rc2 {[%emt 0:00:00]} 46. Rxc6 {[%emt 0:00:00]} Raa2 {[%emt 0:00:00]} 47. Re6 {[%emt 0:00:00]} fxg3+ {[%emt 0:00:00]} 48. hxg3 {[%emt 0:00:00]} Rxc5 {[%emt 0:00:00]} 49. Re3 {[%emt 0:00:00]} Rb2 {[%emt 0:00:00]} 50. Ke1 {[%emt 0:00:26]} 1/2-1/2

[Event "47th GRE-chT 2019"]
[Site "Patra"]
[Date "2019.07.05"]
[Round "5.7"]
[White "Kouta, Antonia"]
[Black "Dereka, Konstantina"]
[Result "0-1"]
[ECO "B54"]
[WhiteElo "1762"]
[BlackElo "1469"]
[Annotator "NA RC"]
[PlyCount "80"]
[EventDate "2019.07.02"]
[EventCountry "GRE"]
[SourceTitle "playchess.com"]
[Source "ChessBase"]
[SourceQuality "1"]
[TimeControl "5400+30"]

1. e4 {[%emt 0:00:00]} c5 {[%emt 0:00:00]} 2. Nf3 {[%emt 0:00:00]} d6 {[%emt 0:00:00]} 3. d4 {[%emt 0:00:00]} cxd4 {[%emt 0:00:00]} 4. Nxd4 {[%emt 0:00:00]} Nf6 {[%emt 0:00:00]} 5. f3 {[%emt 0:00:34]} e5 {[%emt 0:00:00]} 6. Nb3 {[%emt 0:00:05]} d5 {[%emt 0:00:03]} 7. Bg5 {[%emt 0:00:19]} Be6 {[%emt 0:00:04]} 8. Bxf6 {[%emt 0:01:59]} gxf6 {[%emt 0:00:05]} 9. exd5 {[%emt 0:00:43]} Qxd5 {[%emt 0:00:05]} 10. Qxd5 {[%emt 0:00:30]} Bxd5 {[%emt 0:00:04]} 11. Nc3 {[%emt 0:00:17]} Bxb3 {[%emt 0:09:50]} 12. axb3 {[%emt 0:03:52]} Bb4 {[%emt 0:03:49]} 13. Bd3 {[%emt 0:39:59]} Nd7 {[%emt 0:07:16]} 14. Ke2 {[%emt 0:02:48]} Bxc3 {[%emt 0:15:16]} 15. bxc3 {[%emt 0:00:08]} Nc5 {[%emt 0:00:13]} 16. Bf5 {[%emt 0:06:06]} a6 {[%emt 0:15:52]} 17. b4 {[%emt 0:07:46]} Ne6 {[%emt 0:01:32]} 18. b5 {[%emt 0:02:07]} a5 {[%emt 0:07:09]} 19. b6 {[%emt 0:03:41]} Ke7 {[%emt 0:12:16]} 20. Ra4 {[%emt 0:07:54]} Nf4+ {[%emt 0:01:13]} 21. Kf2 {[%emt 0:00:32]} Rhd8 {[%emt 0:02:23]} 22. Re1 {[%emt 0:12:25]} Rd2+ {[%emt 0:02:20]} 23. Kf1 {[%emt 0:03:57]} Nxg2 {[%emt 0:04:11]} 24. Ree4 {[%emt 0:02:19]} Nf4 {[%emt 0:01:30]} 25. Re1 {[%emt 0:02:13]} Nd5 {[%emt 0:01:29]} 26. Rc4 {[%emt 0:02:05]} Rg8 {[%emt 0:02:01]} 27. Rg4 {[%emt 0:00:32]} Rxg4 {[%emt 0:01:00]} 28. fxg4 {[%emt 0:00:20]} Rxh2 {[%emt 0:01:25]} 29. Kg1 {[%emt 0:00:40]} Rh4 {[%emt 0:01:28]} 30. Kg2 {[%emt 0:00:31]} Nf4+ {[%emt 0:01:16]} 31. Kg3 {[%emt 0:00:34]} Rh3+ {[%emt 0:00:05]} 32. Kf2 {[%emt 0:00:03]} Rxc3 {[%emt 0:00:26]} 33. Rd1 {[%emt 0:00:37]} Ne6 {[%emt 0:00:54]} 34. Rd5 {[%emt 0:00:47]} Rc5 {[%emt 0:01:28]} 35. Rd3 {[%emt 0:00:36]} Rxc2+ {[%emt 0:00:46]} 36. Ke3 {[%emt 0:00:13]} Rb2 {[%emt 0:00:40]} 37. Ra3 {[%emt 0:00:21]} Rxb6 {[%emt 0:00:35]} 38. Rxa5 {[%emt 0:00:04]} Rb3+ {[%emt 0:00:46]} 39. Kd2 {[%emt 0:00:20]} Nd4 {[%emt 0:00:43]} 40. Bxh7 {[%emt 0:00:00]} Rh3 {[%emt 0:00:00]} 0-1

[Event "47th GRE-chT 2019"]
[Site "Patra"]
[Date "2019.07.05"]
[Round "5.7"]
[White "Arapkoule, Eirini"]
[Black "Tsivelekidou, Evgenia"]
[Result "0-1"]
[ECO "E14"]
[WhiteElo "1370"]
[BlackElo "1956"]
[Annotator "NA RC"]
[PlyCount "56"]
[EventDate "2019.07.02"]
[EventCountry "GRE"]
[SourceTitle "playchess.com"]
[Source "ChessBase"]
[SourceQuality "1"]
[TimeControl "5400+30"]

1. d4 {[%emt 0:00:00]} Nf6 {[%emt 0:00:00]} 2. Nf3 {[%emt 0:00:00]} e6 {[%emt 0:00:00]} 3. e3 {[%emt 0:00:10]} b6 {[%emt 0:00:00]} 4. Bd3 {[%emt 0:00:31]} Bb7 {[%emt 0:00:08]} 5. O-O {[%emt 0:00:33]} d5 {[%emt 0:00:52]} 6. b3 {[%emt 0:00:50]} Bd6 {[%emt 0:00:49]} 7. Bb2 {[%emt 0:00:40]} O-O {[%emt 0:02:06]} 8. Nbd2 {[%emt 0:00:36]} Ne4 {[%emt 0:00:33]} 9. c4 {[%emt 0:01:17]} Nd7 {[%emt 0:00:54]} 10. Qc2 {[%emt 0:05:01]} f5 {[%emt 0:00:31]} 11. Ne5 {[%emt 0:01:03]} Bxe5 {[%emt 0:03:25]} 12. dxe5 {[%emt 0:00:22]} Nxd2 {[%emt 0:02:16]} 13. Qxd2 {[%emt 0:01:57]} Nc5 {[%emt 0:00:48]} 14. Ba3 {[%emt 0:07:34]} dxc4 {[%emt 0:02:27]} 15. Bxc5 {[%emt 0:01:48]} Qd5 {[%emt 0:00:39]} 16. f4 {[%emt 0:01:30]} c3 {[%emt 0:04:30]} 17. Qc2 {[%emt 0:02:42]} Qxc5 {[%emt 0:01:12]} 18. Rfe1 {[%emt 0:00:38]} b5 {[%emt 0:07:15]} 19. Rac1 {[%emt 0:05:28]} b4 {[%emt 0:01:00]} 20. Bc4 {[%emt 0:01:32]} Qc6 {[%emt 0:04:58]} 21. Qf2 {[%emt 0:01:18]} Rad8 {[%emt 0:03:38]} 22. Red1 {[%emt 0:01:17]} Rd7 {[%emt 0:09:19]} 23. Qf3 {[%emt 0:07:12]} Rxd1+ {[%emt 0:08:50]} 24. Rxd1 {[%emt 0:00:51]} Qxc4 {[%emt 0:03:55]} 25. bxc4 {[%emt 0:01:53]} Bxf3 {[%emt 0:00:05]} 26. gxf3 {[%emt 0:02:39]} a5 {[%emt 0:02:28]} 27. Kf2 {[%emt 0:00:00]} a4 {[%emt 0:03:05]} 28. Ke2 {[%emt 0:00:11]} b3 {[%emt 0:01:47]} 0-1